bitfinex/quotes_SOLUSD_20250106
["timestamp","ask_amount","ask_price","bid_price","bid_amount"]
[1736177478175,3.35549711,221.59,221.56,38.47351808]
[1736177478569,40.29882814,221.63,221.56,38.47351808]
[1736177478768,38.47351808,221.63,221.56,38.47351808]
[1736177479069,38.47351808,221.6,221.54,38.47351808]
[1736177479299,41.82957243,221.62,221.55,38.47351808]
[1736177479475,41.82957243,221.62,221.56,2.58]
[1736177479674,38.47351808,221.61,221.56,2.58]
[1736177480167,3.35605435,221.6,221.56,2.58]
[1736177480368,3.35605435,221.6,221.57,38.47351808]
[1736177480804,38.47351808,221.59,221.56,2.58]
[1736177481469,38.47351808,221.57,221.53,2.58]
[1736177481797,38.47351808,221.58,221.53,2.58]
[1736177481968,38.47351808,221.59,221.53,41.05351808]
[1736177482177,38.47351808,221.58,221.53,2.58]
[1736177482485,3.35873176,221.57,221.53,2.58]
[1736177482687,41.83224984,221.57,221.53,2.58]
[1736177482888,38.47351808,221.57,221.5,38.47351808]
[1736177483085,38.47351808,221.57,221.43,38.47351808]
[1736177483086,38.47351808,221.55,221.49,38.47351808]
[1736177483288,38.47351808,221.51,221.45,38.47351808]
[1736177483691,38.47351808,221.47,221.41,38.47351808]
[1736177483902,38.47351808,221.54,221.41,41.05351808]
[1736177484209,38.47351808,221.48,221.41,41.05351808]
[1736177484379,38.47351808,221.48,221.41,38.47351808]
[1736177484587,38.47351808,221.42,221.35,2.58]
[1736177484789,38.47351808,221.4,221.35,2.58]
[1736177485111,26.2448,221.51,221.39,38.47351808]
[1736177485285,26.2448,221.51,221.35,3.25749721]
[1736177485477,38.47351808,221.48,221.41,38.47351808]
[1736177485880,66.54196065,221.51,221.44,38.47351808]
[1736177486110,66.54196065,221.51,221.35,14.67698721]
[1736177486111,3.3562258,221.47,221.45,41.05351808]
[1736177486415,3.3562258,221.47,221.46,2.58]
[1736177486799,1.5204,221.56,221.46,41.05351808]
[1736177486800,38.47351808,221.54,221.46,41.05351808]
[1736177486980,21.5204,221.56,221.49,38.47351808]
[1736177486981,38.47351808,221.55,221.49,38.47351808]
[1736177487381,3.35420986,221.53,221.51,38.47351808]
[1736177487608,3.35420986,221.53,221.52,38.47351808]
[1736177488125,1.77032519,221.58,221.52,38.47351808]
[1736177488293,38.47351808,221.59,221.52,38.47351808]
[1736177488499,38.47351808,221.58,221.52,38.47351808]
[1736177488688,38.47351808,221.56,221.53,2.58]
[1736177488889,38.47351808,221.56,221.54,2.58]
[1736177489087,38.47351808,221.56,221.49,38.47351808]
[1736177489296,38.47351808,221.51,221.48,2.58]
[1736177489501,38.47351808,221.52,221.48,2.58]
[1736177489885,24.59628671,221.63,221.48,2.58]
[1736177489886,38.47351808,221.54,221.48,2.58]
[1736177490314,38.47351808,221.52,221.48,2.58]
[1736177490595,38.47351808,221.49,221.44,2.74]
[1736177490929,38.47351808,221.47,221.44,2.74]
[1736177491212,38.47351808,221.54,221.44,2.74]
[1736177491213,23.69827297,221.48,221.44,2.74]
[1736177491687,23.69827297,221.54,221.44,2.74]
[1736177491688,23.69827297,221.46,221.44,2.74]
[1736177492490,23.69827297,221.45,221.4,2.74]
[1736177492788,6.185,221.5,221.4,26.43827297]
[1736177492789,23.69827297,221.46,221.4,26.43827297]
[1736177492997,23.69827297,221.45,221.4,2.74]
[1736177493321,23.69827297,221.44,221.38,26.43827297]
[1736177493489,23.69827297,221.43,221.38,2.74]
[1736177493683,21.55214241,221.41,221.38,2.74]
[1736177493908,21.55214241,221.41,221.3,0.67735085]
[1736177494117,21.55214241,221.4,221.33,21.55214241]
[1736177494284,21.55214241,221.4,221.34,2.74]
[1736177494615,21.55214241,221.41,221.34,24.29214241]
[1736177495097,21.55214241,221.4,221.34,2.74]
[1736177496017,21.55214241,221.41,221.34,24.29214241]
[1736177496334,21.55214241,221.48,221.4,21.55214241]
[1736177496618,21.55214241,221.48,221.42,21.55214241]
[1736177496786,21.55214241,221.48,221.43,2.74]
[1736177496787,1.85461617,221.48,221.43,2.74]
[1736177497115,20.0,221.47,221.4,2.74]
[1736177497417,20.0,221.47,221.38,2.74]
[1736177497822,3.34824982,221.46,221.38,2.74]
[1736177498024,21.55214241,221.43,221.38,2.74]
[1736177498337,3.34824982,221.46,221.4,21.55214241]
[1736177498536,21.55214241,221.47,221.4,21.55214241]
[1736177498737,21.55214241,221.45,221.39,21.55214241]
[1736177498938,21.55214241,221.46,221.4,21.55214241]
[1736177499234,21.55214241,221.47,221.41,21.55214241]
[1736177499532,23.36407571,221.5,221.43,21.55214241]
[1736177500243,21.55214241,221.49,221.43,21.55214241]
[1736177500539,21.55214241,221.45,221.39,21.55214241]
[1736177500739,23.07474241,221.54,221.38,24.29214241]
[1736177500740,21.55214241,221.44,221.38,24.29214241]
[1736177501034,23.07474241,221.54,221.39,21.55214241]
[1736177501035,21.55214241,221.45,221.39,21.55214241]
[1736177501533,21.55214241,221.46,221.4,21.55214241]
[1736177501735,21.55214241,221.47,221.41,21.55214241]
[1736177501935,21.55214241,221.48,221.41,21.55214241]
[1736177502141,3.34944345,221.54,221.46,21.55214241]
[1736177502323,1.82684345,221.54,221.47,2.74]
[1736177502525,6.5214,221.56,221.47,2.74]
[1736177502725,8.38075215,221.56,221.47,2.74]
[1736177503120,1.85935215,221.56,221.47,2.74]
[1736177503322,21.55214241,221.55,221.49,21.55214241]
[1736177503525,21.55214241,221.53,221.48,2.74]
[1736177503731,21.55214241,221.52,221.46,21.55214241]
[1736177503926,21.55214241,221.5,221.46,2.74]
[1736177504211,21.55214241,221.51,221.46,2.74]
[1736177504740,21.55214241,221.5,221.46,2.74]
[1736177504938,20.0,221.57,221.46,2.74]
[1736177505239,21.55214241,221.56,221.5,21.55214241]
[1736177505540,1.5397,221.6,221.52,21.55214241]
[1736177505541,21.55214241,221.59,221.52,21.55214241]
[1736177505743,41.55214241,221.59,221.52,21.55214241]
[1736177506042,1.82816403,221.6,221.55,21.55214241]
[1736177506238,6.3333,221.62,221.56,24.29214241]
[1736177506542,21.55214241,221.61,221.56,2.74]
[1736177507240,6.3333,221.62,221.52,21.55214241]
[1736177507241,21.55214241,221.59,221.52,21.55214241]
[1736177507437,21.55214241,221.59,221.43,21.55214241]
[1736177507438,41.55214241,221.59,221.53,24.29214241]
[1736177507643,21.55214241,221.6,221.54,21.55214241]
[1736177508213,27.88544241,221.62,221.56,21.55214241]
[1736177508538,21.55214241,221.65,221.58,21.55214241]
[1736177508724,23.09324241,221.66,221.6,21.55214241]
[1736177508931,23.09324241,221.66,221.59,21.55214241]
[1736177509238,7.97991971,221.67,221.61,21.55214241]
[1736177509239,29.53206212,221.67,221.61,21.55214241]
[1736177509432,29.53206212,221.67,221.63,21.55214241]
[1736177509433,1.81921971,221.67,221.63,21.55214241]
[1736177509614,6.1967,221.73,221.66,21.55214241]
[1736177509815,21.55214241,221.75,221.69,21.55214241]
[1736177510034,1.81717574,221.76,221.7,24.29214241]
[1736177510219,6.1967,221.86,221.71,2.74]
[1736177510433,6.1967,221.86,221.72,24.29214241]
[1736177510747,21.55214241,221.81,221.75,21.55214241]
[1736177510949,21.55214241,221.8,221.76,2.74]
[1736177511375,21.55214241,221.78,221.76,2.74]
[1736177511852,21.55214241,221.81,221.76,2.74]
[1736177512031,21.55214241,221.82,221.76,2.74]
[1736177512336,21.55214241,221.81,221.76,2.74]
[1736177513140,34.90261068,221.82,221.76,37.64261068]
[1736177513346,34.90261068,221.81,221.76,2.74]
[1736177513554,8.0469054,221.86,221.76,2.74]
[1736177513555,34.90261068,221.82,221.76,2.74]
[1736177513765,34.90261068,221.8,221.76,2.74]
[1736177514468,34.90261068,221.81,221.76,2.74]
[1736177514769,34.90261068,221.8,221.76,2.74]
[1736177515144,34.90261068,221.8,221.77,2.74]
[1736177515652,34.90261068,221.81,221.77,2.74]
[1736177515853,11.2688,221.85,221.7,20.0]
[1736177515854,34.90261068,221.78,221.7,54.90261068]
[1736177516054,11.2688,221.85,221.73,34.90261068]
[1736177516055,34.90261068,221.8,221.73,34.90261068]
[1736177516238,34.90261068,221.8,221.74,34.90261068]
[1736177516433,34.90261068,221.78,221.72,34.90261068]
[1736177516838,34.90261068,221.79,221.73,2.74]
[1736177517165,34.90261068,221.76,221.69,34.90261068]
[1736177517458,8.0469054,221.86,221.73,34.90261068]
[1736177517664,34.90261068,221.79,221.73,34.90261068]
[1736177517863,19.3154054,221.86,221.67,2.74]
[1736177518070,20.0,221.83,221.67,2.74]
[1736177518559,34.90261068,221.72,221.66,34.90261068]
[1736177518765,34.90261068,221.71,221.67,2.74]
[1736177518962,34.90261068,221.68,221.6,34.90261068]
[1736177519141,34.90261068,221.66,221.61,2.68]
[1736177519845,34.90261068,221.67,221.61,37.58261068]
[1736177520150,19.73284377,221.72,221.63,34.90261068]
[1736177520151,34.90261068,221.7,221.63,34.90261068]
[1736177521265,34.90261068,221.73,221.67,34.90261068]
[1736177521444,34.90261068,221.74,221.67,34.90261068]
[1736177521643,6.1658,221.78,221.61,3.35666715]
[1736177521644,34.90261068,221.69,221.62,34.90261068]
[1736177521849,34.90261068,221.68,221.61,37.58261068]
[1736177522051,34.90261068,221.69,221.61,2.68]
[1736177522252,34.90261068,221.69,221.62,37.58261068]
[1736177522567,34.90261068,221.67,221.62,2.68]
[1736177522767,34.90261068,221.64,221.57,34.90261068]
[1736177522948,34.90261068,221.61,221.58,2.68]
[1736177523149,34.90261068,221.63,221.58,2.68]
[1736177523344,34.90261068,221.62,221.58,2.68]
[1736177523661,34.90261068,221.6,221.58,2.68]
[1736177523891,34.90261068,221.59,221.58,2.68]
[1736177524064,20.0,221.56,221.37,6.86312402]
[1736177524244,34.90261068,221.42,221.37,6.86312402]
[1736177524437,34.90261068,221.43,221.37,6.86312402]
[1736177524651,34.90261068,221.45,221.37,20.0]
[1736177524851,34.90261068,221.45,221.38,34.90261068]
[1736177525170,34.90261068,221.46,221.38,34.90261068]
[1736177525370,34.90261068,221.45,221.38,34.90261068]
[1736177525554,34.90261068,221.46,221.38,34.90261068]
[1736177525875,34.90261068,221.44,221.37,34.90261068]
[1736177526244,34.90261068,221.44,221.37,37.58261068]
[1736177526643,34.90261068,221.43,221.37,2.68]
[1736177526841,35.00385187,221.48,221.41,35.00385187]
[1736177527157,35.00385187,221.49,221.38,0.67728716]
[1736177527356,23.41904622,221.56,221.37,22.68]
[1736177527664,23.41904622,221.56,221.41,20.0]
[1736177527870,1.5141,221.56,221.41,20.0]
[1736177528055,20.0,221.55,221.41,20.0]
[1736177528262,20.0,221.55,221.38,2.68]
[1736177528573,35.00385187,221.47,221.39,35.00385187]
[1736177528764,35.00385187,221.47,221.4,35.00385187]
[1736177529279,35.00385187,221.54,221.38,2.68]
[1736177529280,35.00385187,221.49,221.42,35.00385187]
[1736177529487,35.00385187,221.5,221.43,35.00385187]
[1736177529638,35.00385187,221.51,221.44,35.00385187]
[1736177529835,35.00385187,221.52,221.45,35.00385187]
[1736177530066,1.5141,221.56,221.43,35.00385187]
[1736177530067,35.00385187,221.5,221.43,35.00385187]
[1736177530264,35.00385187,221.49,221.42,35.00385187]
[1736177531046,35.00385187,221.51,221.45,35.00385187]
[1736177531251,35.00385187,221.53,221.47,35.00385187]
[1736177531459,35.00385187,221.54,221.47,35.00385187]
[1736177531664,35.00385187,221.55,221.48,35.00385187]
[1736177532241,35.00385187,221.52,221.47,20.0]
[1736177532465,35.00385187,221.54,221.47,55.00385187]
[1736177532647,35.00385187,221.53,221.47,55.00385187]
[1736177532974,35.00385187,221.49,221.46,2.68]
[1736177533155,35.00385187,221.5,221.46,2.68]
[1736177533472,35.00385187,221.53,221.46,37.68385187]
[1736177534067,35.00385187,221.52,221.45,35.00385187]
[1736177534275,35.00385187,221.5,221.44,2.68]
[1736177534881,35.00385187,221.53,221.46,35.00385187]
[1736177535044,13.19189121,221.6,221.48,35.00385187]
[1736177535045,35.00385187,221.55,221.48,35.00385187]
[1736177535641,35.00385187,221.53,221.47,2.68]
[1736177535872,35.00385187,221.5,221.47,2.68]
[1736177536053,35.00385187,221.48,221.42,35.00385187]
[1736177536668,35.00385187,221.49,221.42,35.00385187]
[1736177537061,35.00385187,221.54,221.46,21.53254436]
[1736177537062,21.53254436,221.53,221.46,21.53254436]
[1736177537372,1.95191436,221.54,221.41,2.80549]
[1736177537373,1.95191436,221.54,221.43,21.53254436]
[1736177537577,20.0,221.56,221.43,21.53254436]
[1736177537778,21.53254436,221.49,221.41,2.68]
[1736177538074,21.53254436,221.49,221.42,21.53254436]
[1736177538259,21.53254436,221.47,221.4,21.53254436]
[1736177538463,21.53254436,221.47,221.39,24.21254436]
[1736177538655,21.53254436,221.46,221.39,24.21254436]
[1736177538974,21.53254436,221.47,221.4,21.53254436]
[1736177539269,21.53254436,221.44,221.39,2.68]
[1736177539486,21.53254436,221.42,221.39,2.68]
[1736177539685,21.53254436,221.4,221.33,21.53254436]
[1736177539991,1.6635,221.49,221.33,21.53254436]
[1736177539992,21.53254436,221.41,221.35,21.53254436]
[1736177540275,21.53254436,221.44,221.38,21.53254436]
[1736177540484,21.53254436,221.45,221.38,21.53254436]
[1736177540786,21.53254436,221.43,221.36,21.53254436]
[1736177540949,21.53254436,221.42,221.35,21.53254436]
[1736177541151,35.02589706,221.42,221.35,35.02589706]
[1736177541351,35.02589706,221.43,221.36,35.02589706]
[1736177541579,35.02589706,221.43,221.35,2.68]
[1736177541580,35.02589706,221.44,221.37,35.02589706]
[1736177541879,35.02589706,221.43,221.36,35.02589706]
[1736177542489,35.02589706,221.42,221.35,35.02589706]
[1736177542653,35.02832366,221.41,221.34,55.02832366]
[1736177543673,35.02832366,221.43,221.36,35.02832366]
[1736177543889,35.02832366,221.43,221.34,20.0]
[1736177543890,35.02832366,221.42,221.35,35.02832366]
[1736177544381,35.02832366,221.41,221.35,35.02832366]
[1736177544578,35.02832366,221.41,221.34,35.02832366]
[1736177544797,35.02832366,221.39,221.32,35.02832366]
[1736177545386,35.02832366,221.39,221.33,35.02832366]
[1736177545865,35.02832366,221.4,221.33,35.02832366]
[1736177546182,35.02832366,221.38,221.32,35.02832366]
[1736177546581,35.02832366,221.39,221.32,35.02832366]
[1736177546764,35.02832366,221.36,221.3,35.02832366]
[1736177547087,35.02832366,221.38,221.32,35.02832366]
[1736177547248,35.02832366,221.44,221.37,35.02832366]
[1736177547451,35.02832366,221.44,221.27,0.25098]
[1736177547452,1.6635,221.49,221.4,35.02832366]
[1736177547668,35.02832366,221.46,221.35,2.68]
[1736177547883,35.02832366,221.44,221.38,35.02832366]
[1736177548056,1.6635,221.49,221.35,2.68]
[1736177548057,35.02832366,221.41,221.35,2.68]
[1736177548261,35.02832366,221.41,221.35,37.70832366]
[1736177548464,35.02832366,221.42,221.36,35.02832366]
[1736177548666,35.02832366,221.41,221.35,37.70832366]
[1736177549189,35.02832366,221.42,221.35,37.70832366]
[1736177549353,35.02832366,221.43,221.36,35.02832366]
[1736177549776,35.02832366,221.42,221.36,35.02832366]
[1736177549977,35.02832366,221.44,221.37,35.02832366]
[1736177550187,12.9508,221.49,221.35,2.68]
[1736177550188,35.02832366,221.45,221.38,35.02832366]
[1736177550367,35.02832366,221.47,221.41,35.02832366]
[1736177550695,1.527,221.55,221.39,20.0]
[1736177551369,1.527,221.55,221.37,0.12549]
[1736177551370,1.85825119,221.55,221.42,0.12549]
[1736177551692,11.2811,221.61,221.42,0.12549]
[1736177551693,35.02832366,221.61,221.54,35.02832366]
[1736177551856,35.02832366,221.67,221.6,35.02832366]
[1736177552062,35.02832366,221.67,221.55,2.66]
[1736177552063,36.57412366,221.68,221.61,35.02832366]
[1736177552288,41.39422366,221.69,221.62,35.02832366]
[1736177552494,35.02832366,221.68,221.61,35.02832366]
[1736177552969,35.02832366,221.67,221.61,35.02832366]
[1736177553362,35.02832366,221.67,221.55,14.62053561]
[1736177553363,35.02832366,221.67,221.6,35.02832366]
[1736177553558,35.02832366,221.64,221.61,2.66]
[1736177553794,35.02832366,221.64,221.58,35.02832366]
[1736177554000,35.02832366,221.64,221.59,2.66]
[1736177554162,11.275,221.73,221.59,2.66]
[1736177554163,35.02832366,221.62,221.59,2.66]
[1736177554363,35.02832366,221.61,221.55,35.02832366]
[1736177554560,35.02832366,221.61,221.58,2.66]
[1736177555174,35.02832366,221.59,221.58,2.66]
[1736177555691,35.02832366,221.59,221.51,2.66]
[1736177555991,35.02832366,221.52,221.51,2.66]
[1736177556170,35.02832366,221.52,221.49,2.66]
[1736177556377,35.02832366,221.5,221.43,35.02832366]
[1736177556685,22.7199,221.61,221.44,2.66]
[1736177556686,35.02832366,221.49,221.44,2.66]
[1736177556984,35.02832366,221.47,221.45,2.66]
[1736177557160,35.02832366,221.46,221.44,2.66]
[1736177557365,35.02832366,221.45,221.42,2.66]
[1736177557678,36.95222189,221.54,221.39,2.66]
[1736177557679,35.02832366,221.43,221.39,2.66]
[1736177557872,35.02832366,221.43,221.38,2.66]
[1736177558065,35.02832366,221.45,221.38,37.68832366]
[1736177558498,1.92389823,221.54,221.42,35.02832366]
[1736177558677,35.02832366,221.49,221.42,35.02832366]
[1736177558877,35.02832366,221.48,221.41,35.02832366]
[1736177559389,35.02832366,221.49,221.42,35.02832366]
[1736177559584,35.02832366,221.49,221.43,2.66]
[1736177560480,35.02832366,221.5,221.43,37.68832366]
[1736177560980,35.02832366,221.49,221.43,2.66]
[1736177561676,35.02832366,221.47,221.43,2.66]
[1736177562479,35.02832366,221.44,221.39,2.66]
[1736177562684,35.02832366,221.41,221.34,35.02832366]
[1736177562878,35.02832366,221.41,221.36,2.66]
[1736177563076,35.02832366,221.41,221.34,35.02832366]
[1736177563279,35.02832366,221.43,221.36,35.02832366]
[1736177564009,35.02832366,221.42,221.35,37.68832366]
[1736177564371,35.02832366,221.44,221.37,35.02832366]
[1736177564664,35.02832366,221.43,221.36,35.02832366]
[1736177565093,21.55079943,221.43,221.36,21.55079943]
[1736177565371,21.55079943,221.42,221.35,21.55079943]
[1736177565567,21.55079943,221.43,221.36,2.66]
[1736177565875,21.55079943,221.45,221.38,21.55079943]
[1736177566503,21.55079943,221.44,221.37,21.55079943]
[1736177566684,21.55079943,221.42,221.36,2.66]
[1736177567067,11.2861,221.51,221.38,21.55079943]
[1736177567068,21.55079943,221.46,221.38,21.55079943]
[1736177567273,21.55079943,221.47,221.4,21.55079943]
[1736177567477,10.02154173,221.52,221.43,21.55079943]
[1736177567696,21.55079943,221.51,221.43,21.55079943]
[1736177567876,21.55079943,221.51,221.44,21.55079943]
[1736177568074,21.55079943,221.49,221.42,21.55079943]
[1736177568383,21.55079943,221.48,221.41,21.55079943]
[1736177568931,21.55079943,221.47,221.4,21.55079943]
[1736177569110,21.55079943,221.48,221.41,21.55079943]
[1736177569720,21.55079943,221.51,221.44,21.55079943]
[1736177570203,23.41089338,221.52,221.45,21.55079943]
[1736177570417,21.55079943,221.52,221.46,2.66]
[1736177570907,21.55079943,221.55,221.47,21.55079943]
[1736177571200,21.55079943,221.53,221.46,24.21079943]
[1736177571421,21.55079943,221.52,221.46,2.66]
[1736177571617,21.55079943,221.51,221.46,2.66]
[1736177571908,21.55079943,221.52,221.46,2.66]
[1736177572108,21.55079943,221.54,221.47,21.55079943]
[1736177574015,21.55079943,221.54,221.46,2.66]
[1736177574219,21.55079943,221.52,221.46,2.66]
[1736177574609,21.55079943,221.53,221.46,24.21079943]
[1736177574806,21.55079943,221.52,221.46,2.66]
[1736177578115,21.55079943,221.53,221.46,24.21079943]
[1736177578324,21.55079943,221.56,221.49,21.55079943]
[1736177578703,21.55079943,221.52,221.46,2.66]
[1736177579044,21.55079943,221.53,221.46,24.21079943]
[1736177579195,21.55079943,221.54,221.46,24.21079943]
[1736177579396,8.0364186,221.57,221.46,24.21079943]
[1736177579397,1.8860186,221.57,221.52,21.55079943]
[1736177579724,21.55079943,221.59,221.52,21.55079943]
[1736177579934,21.55079943,221.61,221.54,21.55079943]
[1736177580104,29.29629943,221.63,221.56,21.55079943]
[1736177580302,27.68339943,221.63,221.56,21.55079943]
[1736177580496,29.56676979,221.63,221.56,21.55079943]
[1736177580835,29.56676979,221.63,221.55,24.15079943]
[1736177581123,1.88337036,221.63,221.57,21.55079943]
[1736177581325,21.55079943,221.64,221.57,21.55079943]
[1736177581629,21.55079943,221.61,221.55,2.6]
[1736177581810,21.55079943,221.57,221.5,21.55079943]
[1736177581995,21.55079943,221.56,221.51,2.6]
[1736177582320,21.55079943,221.58,221.52,2.6]
[1736177582503,21.55079943,221.59,221.52,24.15079943]
[1736177582705,21.55079943,221.61,221.54,21.55079943]
[1736177583494,21.55079943,221.62,221.55,21.55079943]
[1736177583711,21.55079943,221.6,221.53,21.55079943]
[1736177583937,21.55079943,221.59,221.52,24.15079943]
[1736177584118,21.55079943,221.6,221.54,21.55079943]
[1736177584518,21.55079943,221.6,221.53,21.55079943]
[1736177584823,21.55079943,221.57,221.52,2.6]
[1736177585128,21.55079943,221.56,221.5,2.6]
[1736177585524,21.55079943,221.53,221.5,2.6]
[1736177585826,21.55079943,221.52,221.5,2.6]
[1736177586029,21.55079943,221.51,221.41,21.55079943]
[1736177586210,21.55079943,221.46,221.39,21.55079943]
[1736177586410,20.0,221.5,221.4,2.6]
[1736177586622,21.55079943,221.47,221.4,24.15079943]
[1736177587017,21.55079943,221.44,221.37,21.55079943]
[1736177587331,21.55079943,221.44,221.38,2.6]
[1736177588124,1.87735519,221.44,221.38,24.15079943]
[1736177588302,21.55079943,221.45,221.38,24.15079943]
[1736177588497,21.55079943,221.42,221.38,2.6]
[1736177588805,21.55079943,221.43,221.38,2.6]
[1736177589005,21.55079943,221.44,221.38,2.6]
[1736177589532,21.55079943,221.39,221.32,21.55079943]
[1736177592415,21.55079943,221.34,221.26,20.0]
[1736177592718,21.55079943,221.34,221.27,21.55079943]
[1736177592921,11.2907,221.42,221.29,21.55079943]
[1736177592922,21.55079943,221.36,221.29,21.55079943]
[1736177593128,29.37799943,221.43,221.26,20.0]
[1736177593129,21.55079943,221.38,221.31,21.55079943]
[1736177593304,21.55079943,221.4,221.33,21.55079943]
[1736177593499,7.8272,221.43,221.35,21.55079943]
[1736177593500,21.55079943,221.42,221.35,21.55079943]
[1736177594013,21.55079943,221.43,221.37,21.55079943]
[1736177594214,23.43488024,221.44,221.37,21.55079943]
[1736177594399,21.55079943,221.43,221.37,21.55079943]
[1736177594604,21.55079943,221.45,221.39,21.55079943]
[1736177595005,7.9062,221.49,221.37,21.55079943]
[1736177595006,21.55079943,221.44,221.37,21.55079943]
[1736177595304,21.55079943,221.44,221.38,21.55079943]
[1736177595813,21.55079943,221.43,221.34,2.6]
[1736177596132,21.55079943,221.4,221.34,2.6]
[1736177596329,21.55079943,221.4,221.34,24.15079943]
[1736177597305,21.55079943,221.4,221.34,2.6]
[1736177598040,21.55079943,221.41,221.34,24.15079943]
[1736177598326,1.88583163,221.42,221.37,21.55079943]
[1736177598529,21.55079943,221.41,221.34,2.6]
[1736177598703,21.55079943,221.39,221.34,2.6]
[1736177598900,21.55079943,221.38,221.31,21.55079943]
[1736177599129,21.55079943,221.37,221.3,24.15079943]
[1736177599311,21.55079943,221.38,221.31,21.55079943]
[1736177599516,21.55079943,221.35,221.28,24.15079943]
[1736177600305,21.55079943,221.37,221.3,21.55079943]
[1736177600709,21.55079943,221.34,221.28,24.15079943]
[1736177601020,21.55079943,221.35,221.28,24.15079943]
[1736177601221,21.55079943,221.34,221.28,24.15079943]
[1736177601432,21.55079943,221.35,221.28,24.15079943]
[1736177601728,21.55079943,221.32,221.28,2.6]
[1736177602336,21.55079943,221.3,221.24,21.55079943]
[1736177602639,21.55079943,221.29,221.24,2.6]
[1736177602806,21.55079943,221.29,221.22,21.55079943]
[1736177603011,21.55079943,221.27,221.23,2.6]
[1736177603210,21.55079943,221.25,221.2,2.6]
[1736177603833,21.55079943,221.26,221.2,24.15079943]
[1736177604046,21.55079943,221.28,221.21,21.55079943]
[1736177604714,21.55079943,221.27,221.21,21.55079943]
[1736177605110,21.55079943,221.28,221.22,21.55079943]
[1736177605305,21.55079943,221.27,221.2,24.15079943]
[1736177606036,21.55079943,221.26,221.2,24.15079943]
[1736177606339,21.55079943,221.25,221.22,20.0]
[1736177606532,21.55079943,221.3,221.23,21.55079943]
[1736177606838,21.55079943,221.29,221.22,21.55079943]
[1736177607434,11.294,221.36,221.23,21.55079943]
[1736177607612,21.55079943,221.31,221.24,21.55079943]
[1736177607812,21.55079943,221.33,221.26,21.55079943]
[1736177608829,21.55079943,221.34,221.27,21.55079943]
[1736177609038,21.55079943,221.32,221.26,21.55079943]
[1736177609256,21.55079943,221.32,221.2,2.6]
[1736177609409,21.55079943,221.26,221.2,21.55079943]
[1736177609926,21.55079943,221.27,221.2,21.55079943]
[1736177610313,21.55079943,221.25,221.18,21.55079943]
[1736177610532,21.55079943,221.25,221.19,24.15079943]
[1736177610838,21.55079943,221.27,221.2,21.55079943]
[1736177611218,21.55079943,221.26,221.19,24.15079943]
[1736177611419,21.55079943,221.25,221.19,2.6]
[1736177611613,21.55079943,221.24,221.17,21.55079943]
[1736177611817,21.55079943,221.23,221.16,21.55079943]
[1736177612042,21.55079943,221.23,221.17,2.6]
[1736177612232,21.55079943,221.23,221.17,24.15079943]
[1736177612431,21.55079943,221.23,221.17,21.55079943]
[1736177612635,21.55079943,221.23,221.17,24.15079943]
[1736177612842,21.55079943,221.21,221.17,2.6]
[1736177613131,11.298,221.28,221.17,2.6]
[1736177613132,21.55079943,221.22,221.17,2.6]
[1736177613521,21.55079943,221.26,221.19,21.55079943]
[1736177614048,21.55079943,221.27,221.2,21.55079943]
[1736177614341,21.55079943,221.25,221.19,21.55079943]
[1736177615433,21.55079943,221.29,221.23,21.55079943]
[1736177615921,21.55079943,221.3,221.24,21.55079943]
[1736177616645,21.55079943,221.33,221.27,21.55079943]
[1736177616851,21.55079943,221.32,221.26,2.6]
[1736177617447,21.55079943,221.31,221.26,2.6]
[1736177618036,21.55079943,221.32,221.26,2.6]
[1736177618338,21.55079943,221.34,221.27,21.55079943]
[1736177618568,21.55079943,221.36,221.29,21.55079943]
[1736177618734,21.55079943,221.38,221.31,21.55079943]
[1736177618933,21.55079943,221.39,221.32,21.55079943]
[1736177619667,21.55079943,221.37,221.3,21.55079943]
[1736177620037,21.55079943,221.33,221.27,21.55079943]
[1736177620237,21.55079943,221.33,221.28,2.6]
[1736177621063,21.55079943,221.32,221.28,2.6]
[1736177621258,21.55079943,221.32,221.25,21.55079943]
[1736177621462,21.55079943,221.32,221.26,2.6]
[1736177621849,21.55079943,221.31,221.26,2.6]
[1736177622164,21.55079943,221.32,221.26,2.6]
[1736177622465,21.57212827,221.32,221.26,2.6]
[1736177622668,21.57212827,221.31,221.26,2.6]
[1736177622873,21.57212827,221.32,221.26,2.6]
[1736177623369,21.57212827,221.31,221.26,2.6]
[1736177623776,21.57212827,221.3,221.26,2.6]
[1736177624462,21.57212827,221.31,221.26,2.6]
[1736177624758,21.57212827,221.3,221.23,24.17212827]
[1736177625065,43.42680933,221.32,221.24,21.57212827]